Workbook

Sheet Production
A1: Food waste pickup and digestion
C3: Pickup truck bed | G3: e.g., my old beater blue 1997 Ford F-150
B4: =retcellname(B4,3) -> PUbedW | D4: width | E4: 64 | F4: in
B5: =retcellname(B5,3) -> PUbedH | D5: height | E5: 19 | F5: in | G5: Cells in light yellow vary per situation
B6: PUbedL | D6: length | E6: 80 | F6: in | G6: Cells in light green should hold in many or all situations
C8: How full?
B9: =retcellname(B9,3) -> PUbedWpct | D9: % width | E9: 1 | H9: =CONCATENATE("",TEXT(ROUND(PUloadAvgCuFt*PUloadNumTimesPerWk,-1),"#,###")," cu ft (",TEXT(ROUND(FWwtWetLb,-1),"#,###")," lbs) of food waste [per month]…") -> 170 cu ft (10,540 lbs) of food waste [per month]…
B10: PUbedHpct | D10: % height | E10: 1 | H10: =CONCATENATE("... may produce ",TEXT(ROUND(FWbiogasProdPerMoInCuFt,-2),"#,###"), " cu ft of biogas per month.") -> ... may produce 21,000 cu ft of biogas per month.
B11: PUbedLpct | D11: % length | E11: 0.75
C13: How often?
B14: =retcellname(B14,3) -> PUloadNumTimesPerWk | E14: 4 | F14: times/mo
I15: 0 | J15: (1 = show cell names in 2nd col, 0 = don't)
C16: PU load vol
B17: =retcellname(B17,3) -> PUloadAvgCuIn | D17: Avg load | E17: =(PUbedW*PUbedWpct)*(PUbedH*PUbedHpct)*(PUbedL*PUbedLpct) -> 72960 | F17: cu in/visit
B18: PUloadAvgCuFt | E18: =PUloadAvgCuIn*cnv_inCuToFtCu -> 42.22222222 | F18: cu ft/visit
B19: PUloadAvgL | E19: =PUloadAvgCuFt*cnv_ftCuToL -> 1195.600333 | F19: liters/visit
B20: PUloadAvgCuM | E20: =PUloadAvgCuFt*cnv_ftCuToMCu -> 1.195600333 | F20: cu m/visit
B21: PUloadAvgCuFtPerMo | D21: Per month | E21: =PUloadAvgCuFt*PUloadNumTimesPerWk -> 168.8888889 | F21: cu ft/mo
B22: PUloadAvgCuMPerMo | E22: =PUloadAvgCuM*PUloadNumTimesPerWk -> 4.782401333 | F22: cu m/mo
C24: Density of food waste
B25: =retcellname(B25,3) -> FWdensityKgPerLiter | E25: 1 | F25: kg/l | G25: Anaerobic-Digestion-of-Canteen-Waste-in-Tanzania-Using-ARTI-Digesters.pdf, p. 16
B26: FWdensityLbPerCuFt | E26: =FWdensityKgPerLiter*cnv_kgPerLToLbPerFtCu -> 62.42796058 | F26: lb/ft3
C28: Wet weight of food waste, per mo
B29: =retcellname(B29,3) -> FWwtWetKg | E29: =FWdensityKgPerLiter*PUloadAvgL*PUloadNumTimesPerWk -> 4782.401333 | F29: kg, wet food
B30: =retcellname(B30,3) -> FWwtWetLb | E30: =FWdensityLbPerCuFt*PUloadAvgCuFt*PUloadNumTimesPerWk -> 10543.3889 | F30: lb, wet food
C32: Dry weight of food waste, per mo (%H2O/TS)
B33: =retcellname(B33,3) -> FWpctH2O | D33: %H2O | E33: 0.78 | G33: Est. (Anaerobic-Digestion-of-Canteen-Waste-in-Tanzania-Using-ARTI-Digesters.pdf, p. 16, says 73%)
D34: (\%TS) | E34: =1-FWpctH2O -> 0.22
B35: FWwtDryKg | D35: TS | E35: =FWwtWetKg*(1-FWpctH2O) -> 1052.128293 | F35: kg, dry food (TS)/mo
B36: FWwtDryLb | D36: TS | E36: =FWwtWetLb*(1-FWpctH2O) -> 2319.545557 | F36: lb, dry food (TS)/mo
C38: %VS, of TS
B39: =retcellname(B39,3) -> FWpctVSofTS | D39: %VS | E39: 0.85 | G39: Est. (conservative) based on several sources
B40: FWwtVSkg | D40: VS | E40: =FWwtDryKg*FWpctVSofTS -> 894.3090493 | F40: kg VS/mo
B41: FWwtVSLb | D41: VS | E41: =FWwtDryLb*FWpctVSofTS -> 1971.613724 | F41: lb VS/mo
C43: Biogas production, per VS wt
B44: =retcellname(B44,3) -> FWbiogasProdPerKgVSliters | E44: =(550+780)/2 -> 665 | F44: l/kg VS | G44: Train the Trainers Seminar, Wolpertshausen, Germany, 28-29 November 2007
B45: FWbiogasProdPerLbVScuFt | E45: =FWbiogasProdPerKgVSliters*cnv_lPerKgToFtCuPerLb -> 10.65227756 | F45: ft3/lb VS
C47: Biogas production, per month
B48: =retcellname(B48,3) -> FWbiogasProdPerMoInL | E48: =FWbiogasProdPerKgVSliters*FWwtVSkg -> 594715.5178 | F48: l/mo | G48: =E48/1000 -> 594.7155178 | H48: m3/mo | I48: =(FWbiogasProdPerMoInL/1000)/(365.25/12) -> 19.53890818 | J48: m3/da
B49: FWbiogasProdPerMoInCuFt | E49: =FWbiogasProdPerLbVScuFt*FWwtVSLb -> 21002.17663 | F49: ft3/mo | I49: =FWbiogasProdPerMoInCuFt/(365.25/12) -> 690.0099097 | J49: ft3/da

Sheet Uses
A1: Uses
A2: use | L2: (note that the calculation of how much pilot oil is used depends on
B3: Numbers for all uses are rated for 1 hour use unless otherwise mentioned | L3: the percentage of methane as indicated in the 'Assumptions' worksheet)
L4: Pilot oil
D5: Use | E5: Size | F5: Unit | G5: Factor | H5: Biogas, m3 | J5: Biogas, ft3 | L5: liters | N5: gal
B6: Gensets | G6: Pilot oil
C7: genset01Hp | D7: Fuel 1 HP engine | E7: 1 | F7: HP | G7: 0 | H7: =fct_cuMperHPperHr -> 0.4530696 | I7: m3/hr | J7: =use_engine1Hp_MCuPerHpPerHr*cnv_mCuToFtCu -> 16.00000193 | K7: ft3/hr
C8: genset02p5Hp | D8: =CONCATENATE(E8," HP genset",) -> 2.5 HP genset | E8: 2.5 | F8: HP | G8: 0.08 | H8: =((1-G8)*E8)*use_engine1Hp_MCuPerHpPerHr -> 1.04206008 | I8: m3/hr | J8: =use_genset02p5Hp_MCuPerHr*cnv_mCuToFtCu -> 36.80000443 | K8: ft3/hr
C9: genset18Hp | D9: =CONCATENATE(E9," HP genset") -> 18 HP genset | E9: 18 | F9: HP | G9: 0.08 | H9: =((1-G9)*E9)*use_engine1Hp_MCuPerHpPerHr -> 7.502832576 | I9: m3/hr | J9: =use_genset18Hp_MCuPerHr*cnv_mCuToFtCu -> 264.9600319 | K9: ft3/hr
C10: gensetKuboda | D10: =CONCATENATE("Kuboda genset @ ",E10," HP") -> Kuboda genset @ 24 HP | E10: 24 | F10: HP | G10: 0.08 | H10: =((1-G10)*E10)*use_engine1Hp_MCuPerHpPerHr -> 10.00377677 | I10: m3/hr | J10: =use_gensetKuboda_MCuPerHr*cnv_mCuToFtCu -> 353.2800425 | K10: ft3/hr
B12: Lights
C13: light100WEquiv | D13: 100w equiv. light | H13: 0.0707921 | I13: m3/hr | J13: =H13*cnv_mCuToFtCu -> 2.499999418 | K13: ft3/hr
B15: Stove | D15: 20-25 cu.ft./hr. per burner, or
C16: stoveBurnerAvg | D16: 150-300 cu.ft/day | H16: 0.63712913 | I16: m3/hr | J16: =H16*cnv_mCuToFtCu -> 22.50000288 | K16: ft3/hr
B20: =CONCATENATE("Based on production of ",TEXT(FWbiogasProdPerMoInCuFt, "#,###")," cu ft/mo, it might be used as follows:") -> Based on production of 21,002 cu ft/mo, it might be used as follows:
B22: Use | C22: # | D22: per | E22: uses
B23: Lights | C23: 4 | D23: hrs/da
B24: Stove | C24: 4 | D24: hrs/da

Sheet Conversions
A1: Conversions
A2: cnv
B4: Length/Distance
C5: Conversion | D5: cellName | E5: conv# | F5: Units
C6: cm (to in) | D6: cmToIn | E6: 0.3937007874 | F6: in
C7: m (to ft) | D7: mToFt | E7: 3.280839895 | F7: ft
C8: km (to mi) | D8: kmToMi | E8: 0.6213711922 | F8: mi
C9: in (to cm) | D9: inToCm | E9: 2.54 | F9: cm
C10: in (to ft) | D10: inToFt | E10: 0.08333333333 | F10: ft
C11: ft (to yd) | D11: ftToYd | E11: 0.3333333333 | F11: yd
C12: ft (to m) | D12: ftToM | E12: 0.3048 | F12: m
C13: ft (to mi) | D13: ftToMi | E13: 0.0001893939 | F13: mi
C14: mi (to km) | D14: miToKm | E14: 1.609344 | F14: km
B16: Area
C17: Conversion | D17: cellName | E17: conv# | F17: Units
C18: cm2 (to in2) | D18: cmSqToInSq | E18: 0.15500031 | F18: in2
C19: m2 (to ft2) | D19: mSqToFtSq | E19: 10.76391042 | F19: ft2
C20: m2 (to ha) | D20: mSqToHa | E20: 0.0001 | F20: ha
C21: km2 (to ha) | D21: kmSqToHa | E21: 100 | F21: ha
C22: km2 (to acre) | D22: kmSqToAcre | E22: 247.1053815 | F22: acre
C23: km2 (to mi2) | D23: kmSqToMiSq | E23: 0.386102158 | F23: mi2
C24: ha (to acre) | D24: haToAcre | E24: 2.471053816 | F24: acre
C25: ha (to ft2) | D25: haToFtSq | E25: 107639.1042 | F25: ft2
C26: in2 (to cm2) | D26: inSqToCmSq | E26: 6.4516 | F26: cm2
C27: in2 (to ft2) | D27: inSqToFtSq | E27: 0.006944444 | F27: ft2
C28: ft2 (to in2) | D28: ftSqToInSq | E28: 144 | F28: in2
C29: ft2 (to m2) | D29: ftSqToMSq | E29: 0.09290304 | F29: m2
C30: ft2 (to yd2) | D30: ftSqToYdSq | E30: 0.1111111 | F30: yd2
C31: ft2 (to mi2) | D31: ftSqToMiSq | E31: 3.587006428e-08 | F31: mi2
C32: ft2 (to acre) | D32: ftSqToAcre | E32: 2.295684114e-05 | F32: acre
C33: ft2 (to ha) | D33: ftSqToHa | E33: 9.290304e-06 | F33: ha
C34: mi2 (to ft2) | D34: miSqToFtSq | E34: 27878400 | F34: ft2
C35: mi2 (to km2) | D35: miSqToKmSq | E35: 2.58998811 | F35: km2
C36: acre (to ft2) | D36: acreToFtSq | E36: 43560 | F36: ft2
C37: acre (to ha) | D37: acreToHa | E37: 0.404685642 | F37: ha
C38: acre (to km2) | D38: acreToKmSq | E38: 0.004046856 | F38: km2
C39: acre (to mi2) | D39: acreToMiSq | E39: 0.0015625 | F39: mi2
B41: Mass
C42: Conversion | D42: cellName | E42: conv# | F42: Units
C43: gm (to oz) | D43: gmToOz | E43: 0.03527396195 | F43: oz
C44: gm (to lb) | D44: gmToLb | E44: 0.002204622622 | F44: lb
C45: kg (to oz) | D45: kgToOz | E45: 35.27396195 | F45: oz
C46: kg (to lb) | D46: kgToLb | E46: 2.204622622 | F46: lb
C47: kg (to ton) | D47: kgToTon | E47: 0.001102311311 | F47: ton
C48: tonne (to lb) | D48: tonneToLb | E48: 2204.622622 | F48: lb
C49: tonne (to ton) | D49: tonneToTon | E49: 1.102311311 | F49: ton
C50: oz (to gm) | D50: ozToGm | E50: 28.34952313 | F50: gm
C51: oz (to lb) | D51: ozToLb | E51: 0.0625 | F51: lb
C52: oz (to kg) | D52: ozToKg | E52: 0.02834952313 | F52: kg
C53: lb (to gm) | D53: lbToGm | E53: 453.59237 | F53: gm
C54: lb (to oz) | D54: lbToOz | E54: 16 | F54: oz
C55: lb (to kg) | D55: lbToKg | E55: 0.45359237 | F55: kg
C56: lb (to ton) | D56: lbToTon | E56: 0.0005 | F56: ton
C57: lb (to tonne) | D57: lbToTonne | E57: 0.00045359237 | F57: tonne
C58: ton (to lb) | D58: tonToLb | E58: 2000 | F58: lb
C59: ton (to kg) | D59: tonToKg | E59: 907.1847 | F59: kg
C60: ton (to tonne) | D60: tonToTonne | E60: 0.90718474 | F60: tonne
B62: Volume
C63: Conversion | D63: cellName | E63: conv# | F63: Units
C64: cm3 (to ml) | D64: cmCuToMl | E64: 1 | F64: ml
C65: cm3 (to m3) | D65: cmCuToMCu | E65: 1e-06 | F65: m3
C66: cm3 (to in3) | D66: cmCuToInCu | E66: 0.06102374409 | F66: in3
C67: cm3 (to fl oz) | D67: cmCuToFlOz | E67: 0.0338140227 | F67: fl oz
C68: l (to m3) | D68: lToMCu | E68: 0.001 | F68: m3
C69: l (to in3) | D69: lToInCu | E69: 61.02374409 | F69: in3
C70: l (to fl oz) | D70: lToFlOz | E70: 33.8140227 | F70: fl oz
C71: l (to ft3) | D71: lToFtCu | E71: 0.03531466672 | F71: ft3
C72: m3 (to cm3) | D72: mCuToCmCu | E72: 1000000 | F72: cm3
C73: m3 (to in3) | D73: mCuToInCu | E73: 61023.74409 | F73: in3
C74: m3 (to ft3) | D74: mCuToFtCu | E74: 35.31466672 | F74: ft3
C75: m3 (to gal) | D75: mCuToGal | E75: 264.1720524 | F75: gal
C76: m3 (to yd3) | D76: mCuToYdCu | E76: 1.307950619 | F76: yd3
C77: in3 (to cm3) | D77: inCuToCmCu | E77: 16.387064 | F77: cm3
C78: in3 (to fl oz) | D78: inCuToFlOz | E78: 0.5541125541 | F78: fl oz
C79: in3 (to ft3) | D79: inCuToFtCu | E79: 0.0005787037037 | F79: ft3
C80: in3 (to gal) | D80: inCuToGal | E80: 0.004329004329 | F80: gal
C81: fl oz (to cm3) | D81: flOzToCmCu | E81: 29.57352956 | F81: cm3
C82: fl oz (to in3) | D82: flOzToInCu | E82: 1.8046875 | F82: in3
C83: fl oz (to ft3) | D83: flOzToFtCu | E83: 0.001044379 | F83: ft3
C84: fl oz (to gal) | D84: flOzToGal | E84: 0.0078125 | F84: gal
C85: ft3 (to cm3) | D85: ftCuToCmCu | E85: 28316.84659 | F85: cm3
C86: ft3 (to l) | D86: ftCuToL | E86: 28.31684659 | F86: l
C87: ft3 (to m3) | D87: ftCuToMCu | E87: 0.028316847 | F87: m3
C88: ft3 (to in3) | D88: ftCuToInCu | E88: 1728 | F88: in3
C89: ft3 (to gal) | D89: ftCuToGal | E89: 7.480519481 | F89: gal
C90: ft3 (to bu) | D90: ftCuToBu | E90: 0.8035639549 | F90: bu
C91: ft3 (to yd3) | D91: ftCuToYdCu | E91: 0.03703704 | F91: yd3
C92: ft3 (to l) | D92: ftCuToL | E92: 28.31685 | F92: l
C93: ft3 (to m3) | D93: ftCuToMCu | E93: 0.02831685 | F93: m3
C94: gal (to fl oz) | D94: galToFlOz | E94: 128 | F94: fl oz
C95: gal (to l) | D95: galToL | E95: 0.2641720524 | F95: l
C96: gal (to ft3) | D96: galToFtCu | E96: 0.1336805556 | F96: ft3
C97: gal (to m3) | D97: galToMCu | E97: 0.003785411784 | F97: m3
C98: yd3 (to ft3) | D98: ydCuToftCu | E98: 26.99999784 | F98: ft3
B100: Energy units
C101: Conversion | D101: cellName | E101: conv# | F101: Units
C102: kCal (to BTU) | D102: kCalToBtu | E102: 3.968320541 | F102: BTU
C103: kCal (to joules) | D103: kCalToJoules | E103: 4186.8 | F103: joules
C104: joules (to kCal) | D104: joulesToKcal | E104: 0.0002388458966 | F104: kCal
C105: joules (to KwH) | D105: joulesToKwh | E105: 2.777778e-07 | F105: KwH
C106: joules (to BTU) | D106: joulesToBtu | E106: 0.0009478171 | F106: BTU
C107: joules (to therm) | D107: joulesToTherm | E107: 9.478134e-09 | F107: therm
C108: kCal (to Kwh) | D108: kCalToKwh | E108: 0.001163 | F108: Kwh
C109: kCal (to therm) | D109: kCalToTherm | E109: 3.969268224e-05 | F109: therm
C110: BTU (to kCal) | D110: btuToKcal | E110: 0.2519957724 | F110: kCal
C111: BTU (to Kwh) | D111: btuToKwh | E111: 0.0002930710833 | F111: Kwh
C112: BTU (to therm) | D112: btuToTherm | E112: 1.000238812e-05 | F112: therm
C113: Kwh (to kCal) | D113: kwhToKcal | E113: 859.8452279 | F113: kCal
C114: Kwh (to BTU) | D114: kwhToBtu | E114: 3412.14148 | F114: BTU
C115: Kwh (to therm) | D115: kwhToTherm | E115: 0.03412128 | F115: therm
C116: therm (to kCal) | D116: thermToKcal | E116: 25193.56071 | F116: kCal
C117: therm (to BTU) | D117: thermToBtu | E117: 99976.12449 | F117: BTU
C118: therm (to Kwh) | D118: thermToKwh | E118: 29.30011111 | F118: Kwh
B120: Power
C121: Conversion | D121: cellName | E121: conv# | F121: Units
C122: kW (to kCal/sec) | D122: kWToKcalPerSec | E122: 0.2388458966 | F122: kCal/sec
C123: kW (to BTU/sec) | D123: kWToBtuPerSec | E123: 0.9478171209 | F123: BTU/sec
C124: kW (to HP) | D124: kWToHp | E124: 1.341022092 | F124: HP
C125: kCal/sec (to kW) | D125: kCalPerSecToKw | E125: 4.1868 | F125: kW
C126: kCal/sec (to HP) | D126: kCalPerSecToHp | E126: 5.614591297 | F126: HP
C127: BTU/sec (to kW) | D127: btuPerSecToKw | E127: 1.055055852 | F127: kW
C128: BTU/sec (to HP) | D128: btuPerSecToHp | E128: 1.414853206 | F128: HP
C129: HP (to kW) | D129: hpToKw | E129: 0.74569987 | F129: kW
C130: HP (to kCal/sec) | D130: hpToKcalPerSec | E130: 0.1781073541 | F130: kCal/sec
C131: HP (to BTU/sec) | D131: hpToBtuPerSec | E131: 0.7067871038 | F131: BTU/sec
B133: Energy Density (chk*)
C134: Conversion | D134: cellName | E134: conv# | F134: Units
C135: cal l-1 (to kCal m-3) | D135: calPerLToKcalPerMCu | E135: 0.001 | F135: kCal m-3
C136: cal l-1 (to joules m-3) | D136: calPerLToJoulesPerMCu | E136: 4184 | F136: joules m-3
C137: kCal l-1 (to joules m-3) | D137: kCalPerLToJoulesPerMCu | E137: 4184000 | F137: joules m-3
C138: kCal l-1 (to BTU ft-3) | D138: kCalPerLToBtuPerFtCu | E138: 112.2951793 | F138: BTU ft-3
C139: kCal l-1 (to BTU gal-1) | D139: kCalPerLToBtuPerGal | E139: 15.01168195 | F139: BTU gal-1
C140: kCal m-3 (to BTU ft-3) | D140: kCalPerMCuToBtuPerFtCu | E140: 0.1122951793 | F140: BTU ft-3
C141: kCal m-3 (to BTU gal-1) | D141: kCalPerMCuToBtuPerGal | E141: 0.01501168195 | F141: BTU gal-1
C142: joules l-1 (to kCal m-3) | D142: joulesPerLToKcalPerMCu | E142: 0.239005736 | F142: kCal m-3
C143: joules l-1 (to BTU ft-3) | D143: joulesPerLToBtuPerFtCu | E143: 0.02685715995 | F143: BTU ft-3
C144: joules l-1 (to BTU gal-1) | D144: joulesPerLToBtuPerGal | E144: 0.003587877372 | F144: BTU gal-1
C145: joules l-1 (to therm ft-3) | D145: joulesPerLToThermPerFtCu | E145: 3.347171434e-10 | F145: therm ft-3
C146: BTU ft-3 (to kCal l-1) | D146: btuPerFtCuToKcalPerL | E146: 0.00890510177 | F146: kCal l-1
C147: BTU ft-3 (to kCal m-3) | D147: btuPerFtCuToKcalPerMCu | E147: 8.90510177 | F147: kCal m-3
C148: BTU ft-3 (to joules m-3) | D148: btuPerFtCuToJoulesPerMCu | E148: 37258.94581 | F148: joules m-3
C149: therm ft-3 (to kCal m-3) | D149: thermPerFtCuToKcalPerMCu | E149: 889702.2002 | F149: kCal m-3
C150: therm ft-3 (to joules m-3) | D150: thermPerFtCuToJoulesPerMCu | E150: 3725005172 | F150: joules m-3
C151: therm ft-3 (to BTU gal-1) | D151: thermPerFtCuToBtuPerGal | E151: 13368.05556 | F151: BTU gal-1
B153: Density
C154: Conversion | D154: cellName | E154: conv# | F154: Units
C155: gm/cm3 (to kg/m3) | D155: gmPerCmCuToKgPerMCu | E155: 1000 | F155: kg/m3
C156: kg/l (to lb/ft3) | D156: kgPerLToLbPerFtCu | E156: =(cnv_kgToLb)/(cnv_lToFtCu) -> 62.42796058 | F156: lb/ft3
C157: kg/m3 (to lb/in3) | D157: kgPerMCuToLbPerInCu | E157: 3.6127292e-05 | F157: lb/in3
C158: kg/m3 (to lb/ft3) | D158: kgPerMCuToLbPerFtCu | E158: =0.000036127292/cnv_inCuToFtCu -> 0.06242796058 | F158: lb/ft3
C159: kg/m3 (to lb/gal) | D159: kgPerMCuToLbPerGal | E159: 0.008345404452 | F159: lb/gal
C160: kg/m3 (to SpGrav (specific gravity)) | D160: kgPerMCuToSpGrav | E160: 0.001 | F160: SpGrav (specific gravity)
C161: lb/ft3 (to kg/m3) | D161: lbPerInCuToKgPerMCu | E161: 16.01846337 | F161: kg/m3
C162: lb/ft3 (to oz/in3) | D162: lbPerFtCuToOzPerInCu | E162: 0.009259259259 | F162: oz/in3
C163: lb/ft3 (to SpGrav) | D163: lbPerFtCuToSpGrav | E163: 62.42718356 | F163: SpGrav
C164: SpGrav (to gm/cm3) | D164: spGravToGmPerCmCu | E164: 1 | F164: gm/cm3
C165: SpGrav (to kg/m3) | D165: spGravToKgPerMCu | E165: 1000 | F165: kg/m3
C166: SpGrav (to oz/in3) | D166: spGravToOzPerInCu | E166: 0.5780294774 | F166: oz/in3
C167: SpGrav (to lb/ft3) | D167: spGravToLbPerFtCu | E167: 0.01601866275 | F167: lb/ft3
C168: SpGrav (to lb/gal) | D168: spGravToLbPerGal | E168: 8.34530058 | F168: lb/gal
B170: Pressure
C171: Conversion | D171: cellName | E171: conv# | F171: Units
C172: atm (to bar) | D172: atmToBar | E172: 1.01325 | F172: bar
C173: atm (to mm Hg) | D173: atmToMmHg | E173: 760.0021002 | F173: mm Hg
C174: atm (to cm H2O) | D174: atmToCmH2o | E174: 1033.227555 | F174: cm H2O
C175: atm (to cm H2O) | D175: atmToFtH2o | E175: 33.89854205 | F175: cm H2O
C176: atm (to MPascal) | D176: atmToMpascal | E176: 0.10132501 | F176: MPascal
C177: atm (to psi) | D177: atmToPsi | E177: 14.69595025 | F177: psi
C178: bar (to atm) | D178: barToAtm | E178: 0.9869232667 | F178: atm
C179: bar (to mm Hg) | D179: barToMmHg | E179: 750.0637554 | F179: mm Hg
C180: bar (to cm H2O) | D180: barToCmH2o | E180: 1019.716213 | F180: cm H2O
C181: bar (to psi) | D181: barToPsi | E181: 14.50377377 | F181: psi
C182: MPascal (to atm) | D182: mPascalToAtm | E182: 9.869231693 | F182: atm
C183: MPascal (to psi) | D183: mPascalToPsi | E183: 145.0377377 | F183: psi
C184: mm Hg (to atm) | D184: mmHgToAtm | E184: 0.001315785838 | F184: atm
C185: mm Hg (to cm H2O) | D185: mmHgToCmH2o | E185: 1.359506047 | F185: cm H2O
C186: cm H2O (to atm) | D186: cmH2oToAtm | E186: 0.0009678410098 | F186: atm
C187: cm H2O (to bar) | D187: cmH2oToBar | E187: 0.000980665 | F187: bar
C188: psi (to atm) | D188: psiToAtm | E188: 0.06804595706 | F188: atm
C189: psi (to bar) | D189: psiToBar | E189: 0.0689475728 | F189: bar
C190: bar (to mm Hg) | D190: barToMmHg | E190: 51.7149241 | F190: mm Hg
C191: psi (to cm H2O) | D191: psiToCmH2o | E191: 70.30695783 | F191: cm H2O
C192: psi (to MPascal) | D192: psiToMpascal | E192: 0.006894757293 | F192: MPascal
B194: Heat Transfer Coefficient
C195: Conversion | D195: cellName | E195: conv# | F195: Units
C196: kCal hr-1 m-2 ºC (to BTU hr-1 ft-2 ºF) | D196: kCalPerHrPerMSqDegCToBtuPerHrPerFtSqDegF | E196: 0.2046791689 | F196: BTU hr-1 ft-2 ºF
C197: BTU hr-1 ft-2 ºF (to kCal hr-1 m-2 ºC) | D197: btuPerHrPerFtSqDegFToKcalPerHrPerMSqDegC | E197: 4.885695041 | F197: kCal hr-1 m-2 ºC
B199: Gas Production (chk*)
C200: Conversion | D200: cellName | E200: conv# | F200: Units
C201: l gm-1 (to ft3 lb-1) | D201: lPerGmToFtCuPerLb | E201: 16.0184625 | F201: ft3 lb-1
C202: l gm-1 (to m3 kg-1) | D202: lPerGmToMCuPerKg | E202: 1 | F202: m3 kg-1
C203: l gm-1 (to m3 t-1) | D203: lPerGmToMCuPerTonne | E203: 1000 | F203: m3 t-1
C204: l kg-1 (to ft3 lb-1) | D204: lPerKgToFtCuPerLb | E204: 0.0160184625 | F204: ft3 lb-1
C205: l kg-1 (to m3 t-1) | D205: lPerKgToMCuPerTonne | E205: 1 | F205: m3 t-1
C206: m3 kg-1 (to ft3 lb-1) | D206: mCuPerKgTo | E206: 16.0184625 | F206: ft3 lb-1
C207: m3 kg-1 (to m3 t-1) | D207: mCuPerKgToMCuPerTonne | E207: 0.001 | F207: m3 t-1
C208: ft3 lb-1 (to yd3 ton-1) | D208: ftCuPerLbToYdCuPerTon | E208: 74.07408 | F208: yd3 ton-1
C209: ft3 lb-1 (to l gm-1) | D209: ftCuPerLbToLPerGm | E209: 0.06242796058 | F209: l gm-1
C210: ft3 lb-1 (to l kg-1) | D210: ftCuPerLbToLPerKg | E210: 62.42796058 | F210: l kg-1
C211: ft3 lb-1 (to m3 kg-1) | D211: ftCuPerLbToMCuPerKg | E211: 0.06242796058 | F211: m3 kg-1
... 17 more rows
